bitfinex/quotes_BTCUSD_20241014
["timestamp","ask_amount","ask_price","bid_price","bid_amount"]
[1728865760825,0.218079,62806.0,62805.0,0.39500893]
[1728865764001,0.21807613,62806.0,62805.0,0.39500893]
[1728865767737,0.21807176,62806.0,62805.0,0.39500893]
[1728865775406,0.21806903,62806.0,62805.0,0.39500893]
[1728865778353,0.23296734,62806.0,62805.0,0.39500893]
[1728865778761,0.21806903,62806.0,62805.0,0.39500893]
[1728865779023,0.23296717,62806.0,62805.0,0.39500893]
[1728865782798,0.179338,62806.0,62805.0,0.39500893]
[1728865783036,0.23298078,62806.0,62805.0,0.39500893]
[1728865783293,0.23298075,62806.0,62805.0,0.39500893]
[1728865790884,0.21808859,62806.0,62805.0,0.39500893]
[1728865791118,0.23299266,62806.0,62805.0,0.39500893]
[1728865792232,0.04038859,62806.0,62805.0,0.39500893]
[1728865793086,0.05529137,62806.0,62805.0,0.39500893]
[1728865794892,0.05528955,62806.0,62805.0,0.39500893]
[1728865795322,0.0552792,62806.0,62805.0,0.39500893]
[1728865799011,0.05527015,62806.0,62805.0,0.39500893]
[1728865801623,0.04036724,62806.0,62805.0,0.39500893]
[1728865801830,0.05526309,62806.0,62805.0,0.39500893]
[1728865804068,0.05525237,62806.0,62805.0,0.39500893]
[1728865805472,0.05525216,62806.0,62805.0,0.39500893]
[1728865805707,0.05525216,62806.0,62805.0,0.38100893]
[1728865806469,0.05525216,62806.0,62805.0,0.39500893]
[1728865806677,0.0552506,62806.0,62805.0,0.39500893]
[1728865807433,0.0552506,62806.0,62805.0,0.38100893]
[1728865807931,0.0552506,62806.0,62805.0,0.39500893]
[1728865808413,0.2303506,62806.0,62805.0,0.39500893]
[1728865809310,0.20652483,62806.0,62805.0,0.38100893]
[1728865809528,0.23034071,62806.0,62805.0,0.36700893]
[1728865809964,0.23034071,62806.0,62805.0,0.37900893]
[1728865810177,0.21545107,62806.0,62805.0,0.36700893]
[1728865810660,0.21545107,62806.0,62805.0,0.39000893]
[1728865811088,0.21545107,62806.0,62805.0,0.37600893]
[1728865811527,0.21545107,62806.0,62805.0,0.38700893]
[1728865813214,0.176738,62806.0,62805.0,0.38700893]
[1728865813443,0.21544121,62806.0,62805.0,0.38700893]
[1728865814967,0.37466121,62806.0,62805.0,0.06656292]
[1728865815435,0.49199083,62806.0,62805.0,0.06656292]
[1728865815680,0.49885046,62806.0,62805.0,0.06656292]
[1728865815902,0.45117476,62806.0,62805.0,0.06656292]
[1728865816165,0.40460225,62806.0,62805.0,0.06656292]
[1728865816381,0.47603969,62806.0,62805.0,0.06656292]
[1728865817044,0.47603969,62806.0,62805.0,0.03462292]
[1728865817045,0.64897561,62806.0,62805.0,0.03462292]
[1728865817260,0.64897561,62806.0,62804.0,0.000819]
[1728865817261,0.159222,62805.0,62804.0,0.000819]
[1728865817472,0.65553889,62805.0,62804.0,0.000819]
[1728865817725,0.54320927,62805.0,62804.0,0.000819]
[1728865817943,0.65553889,62805.0,62804.0,0.000819]
[1728865818163,0.92169699,62805.0,62804.0,0.000819]
[1728865818402,0.164253,62793.0,62792.0,0.0001001]
[1728865818614,0.38059332,62793.0,62792.0,0.0001001]
[1728865818826,0.38059332,62793.0,62792.0,0.01058984]
[1728865819035,0.38059332,62793.0,62792.0,0.0001001]
[1728865820125,0.7306465,62793.0,62792.0,0.0001001]
[1728865820334,0.49292294,62793.0,62792.0,0.0001001]
[1728865820614,0.38050627,62793.0,62792.0,0.0001001]
[1728865820844,0.38150627,62793.0,62792.0,0.0061001]
[1728865821287,0.38650627,62793.0,62792.0,0.0011001]
[1728865821522,0.38050627,62793.0,62792.0,0.0001001]
[1728865821744,0.49983589,62793.0,62792.0,0.0011001]
[1728865821961,0.002,62792.0,62788.0,0.000819]
[1728865822228,0.45449262,62789.0,62788.0,0.000819]
[1728865822465,0.49304589,62789.0,62788.0,0.000819]
[1728865822706,0.82263961,62789.0,62788.0,0.000819]
[1728865822951,0.82263961,62789.0,62778.0,0.09646402]
[1728865822952,0.342188,62779.0,62778.0,0.09646402]
[1728865823191,0.60540051,62779.0,62778.0,0.09646402]
[1728865823698,0.76662452,62779.0,62778.0,0.09646402]
[1728865823935,0.87162452,62779.0,62778.0,0.09646402]
[1728865824170,0.7672949,62779.0,62778.0,0.09746402]
[1728865824431,0.7672949,62779.0,62778.0,0.09646402]
[1728865824934,0.81624925,62779.0,62778.0,0.09746402]
[1728865825399,0.80524925,62779.0,62778.0,0.001819]
[1728865825603,0.81324925,62779.0,62778.0,0.001819]
[1728865826071,0.81324925,62779.0,62778.0,0.000819]
[1728865826072,0.79224925,62779.0,62778.0,0.000819]
[1728865826516,0.82424925,62779.0,62778.0,0.001819]
[1728865830325,0.71191963,62779.0,62778.0,0.001819]
[1728865830544,0.82424925,62779.0,62778.0,0.001819]
[1728865831843,0.7992949,62779.0,62778.0,0.001819]
[1728865834995,0.82425009,62779.0,62778.0,0.001819]
[1728865836414,1.09794942,62779.0,62778.0,0.001819]
[1728865837196,0.52769646,62779.0,62778.0,0.001819]
[1728865837913,0.52269646,62779.0,62778.0,0.001819]
[1728865839296,0.52249922,62779.0,62778.0,0.001819]
[1728865840306,0.55049922,62779.0,62778.0,0.001819]
[1728865841924,0.52554403,62779.0,62778.0,0.001819]
[1728865842377,0.487188,62779.0,62778.0,0.001819]
[1728865842627,0.52560698,62779.0,62778.0,0.001819]
[1728865843518,0.6379366,62779.0,62778.0,0.001819]
[1728865844659,0.75026622,62779.0,62778.0,0.001819]
[1728865844876,0.75026622,62779.0,62768.0,0.000819]
[1728865844877,0.45754362,62769.0,62768.0,0.000819]
[1728865845135,0.4959626,62769.0,62768.0,0.000819]
[1728865845993,0.4959626,62769.0,62768.0,0.003819]
[1728865846208,0.52099319,62769.0,62768.0,0.003819]
[1728865846868,0.52099319,62769.0,62768.0,0.005819]
[1728865847752,0.52099319,62769.0,62768.0,0.003819]
[1728865848158,0.52699319,62769.0,62768.0,0.004819]
[1728865848288,0.52699319,62769.0,62768.0,0.003819]
[1728865848506,0.52699319,62769.0,62768.0,0.000819]
[1728865848918,0.53099319,62769.0,62768.0,0.000819]
[1728865849327,0.56380407,62769.0,62768.0,0.000819]
[1728865849596,0.66580407,62769.0,62768.0,0.000819]
[1728865849792,0.97444071,62769.0,62768.0,0.001819]
[1728865850030,0.1861,62768.0,62767.0,0.000819]
[1728865850234,0.67654778,62768.0,62767.0,0.000819]
[1728865850397,0.71512037,62768.0,62767.0,0.000819]
[1728865851446,0.72012037,62768.0,62767.0,0.000819]
[1728865852035,0.72312037,62768.0,62767.0,0.000819]
[1728865853205,0.72112037,62768.0,62767.0,0.000819]
[1728865853428,0.72311923,62768.0,62767.0,0.000819]
[1728865854782,0.74807978,62768.0,62767.0,0.000819]
[1728865856500,0.75083064,62768.0,62767.0,0.000819]
[1728865857312,0.74807978,62768.0,62767.0,0.000819]
[1728865857531,0.74805539,62768.0,62767.0,0.000819]
[1728865857980,0.74605539,62768.0,62767.0,0.000819]
[1728865858625,0.69914762,62768.0,62767.0,0.000819]
[1728865858843,0.51492361,62768.0,62767.0,0.000819]
[1728865859996,0.164334,62761.0,62760.0,0.0075]
[1728865860229,0.20288106,62761.0,62760.0,0.0075]
[1728865860501,0.20288106,62761.0,62760.0,0.01525109]
[1728865860759,0.77508457,62761.0,62760.0,0.0075]
[1728865861011,0.77708457,62761.0,62760.0,0.0075]
[1728865861270,0.77708457,62761.0,62760.0,0.0115]
[1728865861525,0.88941419,62761.0,62760.0,0.00275376]
[1728865861761,0.01,62758.0,62757.0,0.000819]
[1728865861999,0.56941307,62758.0,62757.0,0.000819]
[1728865862237,0.83401592,62758.0,62757.0,0.000819]
[1728865862945,0.83401592,62758.0,62734.0,0.23772356]
[1728865862946,0.53947985,62744.0,62734.0,0.23772356]
[1728865863192,0.74025092,62744.0,62741.0,0.23854256]
[1728865863405,0.74125092,62744.0,62741.0,0.000819]
[1728865863620,0.90262063,62744.0,62741.0,0.000819]
[1728865864092,1.40262063,62744.0,62741.0,0.000819]
[1728865865419,1.41662063,62744.0,62743.0,0.001819]
[1728865865853,1.41662063,62744.0,62743.0,0.000819]
[1728865866285,1.60879526,62744.0,62743.0,0.001819]
[1728865866501,1.44159241,62744.0,62743.0,0.001819]
[1728865866763,1.86051882,62744.0,62743.0,0.001819]
[1728865866996,0.43021585,62730.0,62729.0,0.000819]
[1728865867240,0.62989487,62730.0,62729.0,0.000819]
[1728865867478,0.46867086,62730.0,62729.0,0.000819]
[1728865867719,0.39504537,62730.0,62729.0,0.000819]
[1728865868180,0.40004537,62730.0,62729.0,0.000819]
[1728865869325,0.40604537,62730.0,62729.0,0.000819]
[1728865869798,0.90604537,62730.0,62729.0,0.000819]
[1728865870002,0.90004537,62730.0,62729.0,0.000819]
[1728865870489,0.90404537,62730.0,62729.0,0.000819]
[1728865870700,0.89904537,62730.0,62729.0,0.000819]
[1728865870907,0.90204537,62730.0,62729.0,0.000819]
[1728865871330,0.40204537,62730.0,62729.0,0.000819]
[1728865871987,0.37707086,62730.0,62729.0,0.000819]
[1728865874407,0.33861585,62730.0,62729.0,0.000819]
[1728865874609,0.37700423,62730.0,62729.0,0.000819]
[1728865874845,0.40197758,62730.0,62729.0,0.000819]
[1728865875749,0.07536173,62730.0,62729.0,0.000819]
[1728865876582,0.07136173,62730.0,62729.0,0.000819]
[1728865876790,0.07136173,62730.0,62729.0,0.160234]
[1728865877033,0.07136173,62730.0,62729.0,0.162234]
[1728865877915,0.06836173,62730.0,62729.0,0.162234]
[1728865878149,0.02797335,62730.0,62729.0,0.162234]
[1728865878360,0.06637759,62730.0,62729.0,0.162234]
[1728865878571,0.06337759,62730.0,62729.0,0.162234]
[1728865879025,0.06337759,62730.0,62729.0,0.006819]
[1728865879280,0.22279059,62730.0,62729.0,0.006819]
[1728865879560,0.06337759,62730.0,62729.0,0.006819]
[1728865880670,0.06337759,62730.0,62729.0,0.166234]
[1728865881912,0.03840424,62730.0,62729.0,0.166234]
[1728865882401,0.005,62731.0,62729.0,0.006819]
[1728865882405,0.005,62731.0,62730.0,0.159413]
[1728865882677,0.04345371,62731.0,62730.0,0.159413]
[1728865883135,0.04345371,62731.0,62729.0,0.006819]
[1728865883349,0.03845371,62730.0,62729.0,0.006819]
[1728865883567,0.03845371,62730.0,62729.0,0.166234]
[1728865883791,0.03845371,62730.0,62729.0,0.000819]
[1728865884006,0.19786671,62730.0,62729.0,0.000819]
[1728865884890,0.03845371,62730.0,62729.0,0.160234]
[1728865885112,0.03845371,62730.0,62729.0,0.164234]
[1728865885983,0.03845371,62730.0,62729.0,0.166234]
[1728865886909,0.03845371,62730.0,62729.0,0.53147801]
[1728865887642,0.01478989,62730.0,62729.0,0.53147801]
[1728865887882,0.01478989,62730.0,62729.0,0.62747801]
[1728865888135,0.23936356,62741.0,62740.0,0.159387]
[1728865888393,0.23936356,62741.0,62740.0,0.35253101]
[1728865888394,0.25417857,62741.0,62740.0,0.35253101]
[1728865889139,0.01645501,62741.0,62740.0,0.35253101]
[1728865889641,0.01745501,62741.0,62740.0,0.35753101]
[1728865890913,0.01845501,62741.0,62740.0,0.36753101]
[1728865892835,0.0184499,62741.0,62740.0,0.36753101]
[1728865893327,0.00364,62741.0,62740.0,0.36753101]
[1728865895350,0.00364,62741.0,62740.0,0.36835101]
[1728865896092,0.00364,62741.0,62740.0,0.37035101]
[1728865896359,0.00364,62741.0,62740.0,0.36835101]
[1728865900193,0.00364,62741.0,62740.0,0.53555386]
[1728865911357,0.00364,62741.0,62740.0,0.53755386]
[1728865911831,0.00364,62741.0,62740.0,0.53555386]
[1728865915849,0.00364,62741.0,62740.0,0.48090328]
[1728865916291,0.0184901,62741.0,62740.0,0.48090328]
[1728865916499,0.00364,62741.0,62740.0,0.48090328]
[1728865917174,0.01850383,62741.0,62740.0,0.48090328]
[1728865921588,0.01850958,62741.0,62740.0,0.48090328]
[1728865924749,0.01850958,62741.0,62740.0,0.36835101]
[1728865931362,0.01850958,62741.0,62740.0,0.41824199]
[1728865932598,0.01850958,62741.0,62740.0,0.36835101]
[1728865933100,0.01850958,62741.0,62740.0,0.41824195]
[1728865933337,0.00364,62741.0,62740.0,0.36835101]
[1728865933572,0.00364,62741.0,62740.0,0.41824175]
[1728865933800,0.01851075,62741.0,62740.0,0.36835101]
[1728865937174,0.01851075,62741.0,62740.0,0.41602631]
[1728865937428,0.01851075,62741.0,62740.0,0.46591835]
[1728865939455,0.01851075,62741.0,62740.0,0.41624287]
[1728865939668,0.01851075,62741.0,62740.0,0.46613786]
[1728865940539,0.01851075,62741.0,62740.0,0.418246]
[1728865945083,0.01851021,62741.0,62740.0,0.418246]
[1728865947492,0.01851021,62741.0,62740.0,0.46614299]
[1728865948352,0.01851021,62741.0,62740.0,0.418246]
[1728865948799,0.01851024,62741.0,62740.0,0.418246]
[1728865949678,0.3387338,62741.0,62740.0,0.418246]
[1728865949899,0.19531024,62741.0,62740.0,0.36835101]
[1728865955831,0.19531024,62741.0,62740.0,0.48090328]
[1728865956526,0.19528743,62741.0,62740.0,0.48090328]
[1728865957202,0.01848743,62741.0,62740.0,0.48090328]
[1728865959637,0.01848743,62741.0,62740.0,0.49271842]
[1728865960421,0.00364,62741.0,62740.0,0.49271842]
[1728865960668,0.01848628,62741.0,62740.0,0.49271842]
[1728865960898,0.01848663,62741.0,62740.0,0.49271842]
[1728865963637,0.00364,62741.0,62740.0,0.49271842]
[1728865964523,0.01848778,62741.0,62740.0,0.49271842]
[1728865964943,0.00364,62741.0,62740.0,0.49271842]
[1728865965389,0.01848736,62741.0,62740.0,0.49271842]
[1728865968032,0.01848688,62741.0,62740.0,0.49271842]
[1728865973355,0.01848688,62741.0,62740.0,0.49471842]
[1728865973567,0.01848688,62741.0,62740.0,0.49271842]
[1728865975338,0.01848688,62741.0,62740.0,0.59271842]
[1728865975566,0.02660374,62757.0,62755.0,0.159349]
[1728865975567,0.23772356,62756.0,62755.0,0.159349]
[1728865975787,0.20952413,62756.0,62755.0,0.64767755]
[1728865976015,0.20952413,62756.0,62755.0,0.68704138]
[1728865976252,0.00164,62757.0,62756.0,0.293307]
[1728865976473,0.07128462,62767.0,62757.0,0.002]
[1728865976708,0.09004616,62766.0,62765.0,0.40583627]
[1728865977135,0.09004616,62766.0,62765.0,0.41481331]
[1728865977360,0.16133078,62767.0,62765.0,0.25548931]
[1728865977594,0.07128462,62767.0,62766.0,0.291281]
[1728865978014,0.07128462,62767.0,62766.0,0.30225351]
[1728865978486,0.23772356,62774.0,62773.0,0.191264]
[1728865978705,0.23772356,62774.0,62773.0,0.3146436]
[1728865979138,0.31542356,62782.0,62777.0,0.191254]
[1728865979355,0.01481527,62781.0,62777.0,0.46503028]
[1728865979563,0.31542356,62782.0,62777.0,0.46503028]
[1728865979564,0.31542356,62782.0,62777.0,0.4758395]
[1728865980780,0.31542356,62782.0,62777.0,0.4858395]
[1728865981644,0.00264,62778.0,62777.0,0.4958395]
[1728865982597,0.00264,62778.0,62777.0,0.38328723]
[1728865982829,0.00264,62778.0,62777.0,0.4958395]
[1728865986286,0.00264,62778.0,62777.0,0.4638795]
[1728865986507,0.00264,62778.0,62777.0,0.4958395]
[1728865986931,0.00264,62778.0,62777.0,0.4858395]
[1728865987344,0.00264,62778.0,62777.0,0.4928395]
[1728865987581,0.00164,62778.0,62777.0,0.4828395]
[1728865987797,0.00264,62778.0,62777.0,0.4848395]
[1728865988267,0.00264,62778.0,62777.0,0.19003323]
[1728865988488,0.00264,62778.0,62777.0,0.34932723]
[1728865993561,0.00264,62778.0,62777.0,0.38128723]
[1728865994683,0.00264,62778.0,62777.0,0.4938395]
[1728865995162,0.00264,62778.0,62777.0,0.5938395]
[1728865995821,0.00264,62778.0,62777.0,0.5848395]
[1728865996291,0.00264,62778.0,62777.0,0.60602205]
[1728865996741,0.00264,62778.0,62777.0,0.70957432]
[1728865996979,0.00164,62788.0,62777.0,0.70957432]
[1728865996980,0.00164,62788.0,62787.0,0.191228]
[1728865997198,0.00164,62788.0,62787.0,0.58074159]
[1728865997420,0.00164,62788.0,62787.0,0.59006091]
[1728865997879,0.00164,62788.0,62787.0,0.53177665]
[1728865998313,0.00164,62788.0,62787.0,0.54077665]
[1728865999430,0.00164,62788.0,62787.0,0.55177665]
[1728865999654,0.00164,62788.0,62787.0,0.54977665]
[1728865999889,0.00164,62788.0,62787.0,0.55177665]
[1728866001233,0.00164,62788.0,62787.0,0.66363592]
[1728866002649,0.00164,62804.0,62791.0,0.023]
[1728866002882,0.00164,62804.0,62803.0,0.291188]
[1728866003116,0.00164,62804.0,62803.0,0.293188]
[1728866003558,0.00164,62804.0,62803.0,0.460488]
[1728866004431,0.00164,62804.0,62803.0,0.474488]
[1728866004649,0.00264,62804.0,62803.0,0.488488]
[1728866004878,0.00264,62804.0,62803.0,0.511488]
[1728866005098,0.00264,62804.0,62803.0,0.413088]
[1728866005393,0.00264,62804.0,62803.0,0.415088]
[1728866005851,0.00264,62804.0,62803.0,0.413088]
[1728866006069,0.00264,62804.0,62803.0,0.33143051]
[1728866006292,0.00264,62804.0,62803.0,0.49265452]
[1728866006518,0.00264,62804.0,62803.0,0.50867798]
[1728866008124,0.00264,62804.0,62803.0,0.51067798]
[1728866008364,0.001638,62806.0,62805.0,0.293182]
[1728866008601,0.001638,62806.0,62805.0,1.70680601]
[1728866009542,0.0064222,62813.0,62806.0,0.48300028]
[1728866009766,0.0064222,62813.0,62806.0,0.64422429]
[1728866010700,0.0064222,62813.0,62806.0,1.34422429]
[1728866010916,0.002638,62807.0,62806.0,1.35822429]
[1728866011140,0.001638,62807.0,62806.0,1.34422429]
[1728866011594,0.001638,62807.0,62806.0,1.17740401]
[1728866012024,0.001638,62807.0,62806.0,2.42980401]
[1728866012247,0.001638,62807.0,62806.0,1.74380401]
[1728866012934,0.001638,62807.0,62806.0,1.75780401]
[1728866013121,0.001638,62807.0,62806.0,1.75580401]
[1728866014693,0.001638,62807.0,62806.0,1.75780401]
[1728866015135,0.001638,62807.0,62806.0,1.75580401]
[1728866015391,0.001638,62807.0,62806.0,1.76222701]
[1728866015566,0.001638,62807.0,62806.0,1.76422701]
[1728866016488,0.001638,62807.0,62806.0,1.93104729]
[1728866016692,0.23772356,62815.0,62814.0,0.77637528]
[1728866016894,0.00164,62820.0,62819.0,0.191147]
[1728866017110,0.00164,62820.0,62819.0,0.35237101]
[1728866017432,0.00164,62820.0,62819.0,0.51919129]
[1728866017871,0.00164,62820.0,62819.0,0.61919129]
[1728866019461,0.00164,62820.0,62819.0,0.62919129]
[1728866019670,0.00164,62820.0,62819.0,0.64219129]
[1728866019878,0.00164,62820.0,62819.0,0.63219129]
[1728866020103,0.07228,62827.0,62826.0,0.35794928]
[1728866020310,0.07228,62827.0,62826.0,0.51917329]
[1728866020560,0.08705963,62827.0,62826.0,0.51917329]
[1728866020988,0.07228,62827.0,62826.0,0.51917329]
[1728866021202,0.08706504,62827.0,62826.0,0.51917329]
[1728866021410,0.07228,62827.0,62826.0,0.53695277]
[1728866021620,0.00164,62831.0,62830.0,0.159159]
[1728866021828,0.00164,62831.0,62830.0,0.48720329]
[1728866022880,0.00764,62831.0,62830.0,0.32738301]
[1728866023127,0.09084,62831.0,62830.0,0.33338301]
[1728866023332,0.10563829,62831.0,62830.0,0.33338301]
[1728866028330,0.10566843,62831.0,62830.0,0.33338301]
[1728866030336,0.10566843,62831.0,62830.0,0.50020329]
[1728866031577,0.10569447,62831.0,62830.0,0.50020329]
[1728866032447,0.10569447,62831.0,62830.0,0.33338301]
[1728866032665,0.36345147,62831.0,62830.0,0.17422401]
[1728866032877,0.36345147,62831.0,62830.0,0.013]
[1728866033307,0.36345147,62831.0,62830.0,0.007]
[1728866033748,0.36345147,62831.0,62830.0,0.008]
[1728866033959,0.159169,62827.0,62823.0,0.03196]
[1728866034177,0.18385447,62826.0,62824.0,0.16122401]
[1728866034386,0.09265447,62825.0,62824.0,0.16122401]
[1728866035428,0.09765447,62825.0,62824.0,0.16122401]
[1728866036111,0.09765447,62825.0,62824.0,0.16322401]
[1728866036555,0.09765447,62825.0,62824.0,0.16422401]
[1728866037227,0.25682647,62825.0,62824.0,0.16422401]
[1728866037428,0.35522647,62825.0,62824.0,0.003]
[1728866038138,0.35522647,62825.0,62824.0,0.001]
[1728866038630,0.35622647,62825.0,62824.0,0.001]
[1728866038840,0.35522647,62825.0,62824.0,0.001]
[1728866039284,0.0827,62821.0,62820.0,0.03196]
[1728866039505,0.09755447,62821.0,62820.0,0.19318401]
[1728866039954,0.09755447,62821.0,62820.0,0.35236801]
[1728866040671,0.09755447,62821.0,62820.0,0.35536801]
[1728866041625,0.09755447,62821.0,62820.0,0.35936801]
[1728866041858,0.01485447,62821.0,62820.0,0.32740801]
[1728866042527,0.01485447,62821.0,62820.0,0.33486868]
[1728866042751,0.01485447,62821.0,62820.0,0.33832562]
[1728866044331,0.02085447,62821.0,62820.0,0.33832562]
[1728866044967,0.10305447,62821.0,62820.0,0.33832562]
[1728866045184,0.1956681,62821.0,62820.0,0.33832562]
[1728866045604,0.1956681,62821.0,62820.0,0.33914362]
[1728866046024,0.1956681,62821.0,62820.0,0.37110362]
[1728866046451,0.1956681,62821.0,62820.0,0.36410362]
[1728866046664,0.1956681,62821.0,62820.0,0.37110362]
[1728866046872,0.1956681,62821.0,62820.0,0.37710362]
[1728866047083,0.1956681,62821.0,62820.0,0.37110362]
[1728866047535,0.1956681,62821.0,62820.0,0.38010362]
[1728866047740,0.1956681,62821.0,62820.0,0.37110362]
[1728866047963,0.1956681,62821.0,62820.0,0.36410362]
[1728866048173,0.1956681,62821.0,62820.0,0.38210362]
[1728866048593,0.1956681,62821.0,62820.0,0.37210362]
[1728866049058,0.1956681,62821.0,62820.0,0.38010362]
[1728866049274,0.19566648,62821.0,62820.0,0.38010362]
[1728866051513,0.19566648,62821.0,62820.0,0.18895962]
[1728866051761,0.19566648,62821.0,62820.0,0.34814362]
[1728866051979,0.19566648,62821.0,62820.0,0.18895962]
[1728866052378,0.19566648,62821.0,62820.0,0.22091962]
[1728866052622,0.1808,62821.0,62820.0,0.38010362]
[1728866052831,0.19566687,62821.0,62820.0,0.22091962]
[1728866053038,0.19566687,62821.0,62820.0,0.38010362]
[1728866054174,0.35985097,62821.0,62820.0,0.05969561]
[1728866054402,0.52667125,62821.0,62820.0,0.02773561]
[1728866054605,0.52667125,62821.0,62820.0,0.016818]
[1728866055058,0.55160737,62821.0,62820.0,0.008818]
[1728866055276,0.38478709,62821.0,62820.0,0.008818]
[1728866056410,0.36991812,62821.0,62820.0,0.008818]
[1728866056623,0.38478316,62821.0,62820.0,0.000818]
[1728866056851,0.38778316,62821.0,62820.0,0.000818]
[1728866057311,0.38578316,62821.0,62820.0,0.000818]
[1728866057516,0.38878316,62821.0,62820.0,0.000818]
[1728866057730,0.38478316,62821.0,62820.0,0.000818]
[1728866058157,0.38778316,62821.0,62820.0,0.000818]
[1728866060063,0.38778687,62821.0,62820.0,0.000818]
[1728866061749,0.36285075,62821.0,62820.0,0.000818]
[1728866062863,0.36085075,62821.0,62820.0,0.000818]
[1728866063315,0.36185075,62821.0,62820.0,0.0082861]
[1728866063513,0.36185075,62821.0,62820.0,0.000818]
[1728866064640,0.20266875,62821.0,62820.0,0.000818]
[1728866064849,0.20266875,62821.0,62820.0,0.160002]
[1728866065064,0.20266875,62821.0,62820.0,0.1674701]
[1728866065498,0.20266875,62821.0,62820.0,0.0082861]
[1728866065722,0.36185075,62821.0,62820.0,0.0082861]
[1728866066548,0.36185075,62821.0,62820.0,0.32869411]
[1728866066549,0.11006875,62821.0,62820.0,0.32869411]
[1728866067029,0.11006875,62821.0,62820.0,0.16951011]
[1728866067251,0.36505075,62821.0,62820.0,0.0082861]
[1728866067704,0.36505539,62821.0,62820.0,0.000818]
[1728866067920,0.36505539,62821.0,62820.0,0.005818]
[1728866068807,0.36305539,62821.0,62820.0,0.005818]
[1728866069805,0.36505539,62821.0,62820.0,0.000818]
[1728866071390,0.36505593,62821.0,62820.0,0.000818]
[1728866072333,0.3650558,62821.0,62820.0,0.000818]
[1728866075385,0.36506325,62821.0,62820.0,0.000818]
[1728866085030,0.62772405,62821.0,62820.0,0.000818]
[1728866085265,0.39500049,62821.0,62820.0,0.000818]
[1728866086593,0.39400049,62821.0,62820.0,0.001818]
[1728866086811,0.37911924,62821.0,62820.0,0.001818]
[1728866087039,0.39701843,62821.0,62820.0,0.002818]
[1728866090616,0.38211924,62821.0,62820.0,0.002818]
[1728866090838,0.39701436,62821.0,62820.0,0.002818]
[1728866091997,0.37207712,62821.0,62820.0,0.002818]
[1728866092667,0.41969165,62821.0,62820.0,0.002818]
[1728866094436,0.41968933,62821.0,62820.0,0.002818]
[1728866095059,0.44462747,62821.0,62820.0,0.002818]
[1728866095669,0.46843474,62821.0,62820.0,0.002818]
[1728866095842,0.39701294,62821.0,62820.0,0.002818]
[1728866096423,0.38212014,62821.0,62820.0,0.002818]
[1728866096630,0.39701212,62821.0,62820.0,0.002818]
[1728866096835,0.42001212,62821.0,62820.0,0.002818]
[1728866097489,0.49143392,62821.0,62820.0,0.002818]
[1728866099610,0.42001212,62821.0,62820.0,0.002818]
[1728866100474,0.4915072,62821.0,62820.0,0.002818]
[1728866100939,0.40512014,62821.0,62820.0,0.002818]
[1728866101151,0.4915106,62821.0,62820.0,0.002818]
[1728866101814,0.46657246,62821.0,62820.0,0.002818]
[1728866102050,0.46656979,62821.0,62820.0,0.002818]
[1728866103324,0.49030644,62821.0,62820.0,0.002818]
[1728866104583,0.39507738,62821.0,62820.0,0.002818]
[1728866105484,0.46656675,62821.0,62820.0,0.002818]
[1728866105954,0.46656653,62821.0,62820.0,0.002818]
[1728866106373,0.49150458,62821.0,62820.0,0.002818]
[1728866106789,0.42001543,62821.0,62820.0,0.002818]
[1728866107287,0.49150517,62821.0,62820.0,0.002818]
[1728866108149,0.49151049,62821.0,62820.0,0.002818]
[1728866108585,0.42002075,62821.0,62820.0,0.002818]
[1728866108802,0.49151096,62821.0,62820.0,0.002818]
[1728866110404,0.49151155,62821.0,62820.0,0.002818]
[1728866111060,0.48951155,62821.0,62820.0,0.002818]
[1728866111956,0.46458042,62821.0,62820.0,0.002818]
[1728866113517,0.46058042,62821.0,62820.0,0.002818]
[1728866114876,0.48551842,62821.0,62820.0,0.002818]
[1728866115077,0.48552704,62821.0,62820.0,0.002818]
[1728866115293,0.41402762,62821.0,62820.0,0.002818]
[1728866115544,0.09651427,62821.0,62820.0,0.002818]
[1728866115734,0.09651427,62821.0,62820.0,0.53037115]
[1728866115735,0.01890762,62821.0,62820.0,0.53037115]
[1728866115950,0.01890762,62821.0,62820.0,0.53787243]
[1728866116161,0.02390762,62821.0,62820.0,0.53787243]
[1728866116389,0.01790762,62821.0,62820.0,0.53687243]
[1728866116601,0.01890762,62821.0,62820.0,0.53687243]
[1728866117240,0.01490762,62821.0,62820.0,0.53587243]
[1728866117446,0.01490762,62821.0,62820.0,0.54787243]
[1728866117880,0.01490762,62821.0,62820.0,0.59720766]
[1728866118095,0.01490762,62821.0,62820.0,0.60320766]
[1728866119520,0.05430465,62827.0,62826.0,0.159169]
[1728866119712,0.06918456,62827.0,62826.0,0.32039301]
[1728866119929,0.06918456,62827.0,62826.0,0.32787621]
[1728866119930,0.06418456,62827.0,62826.0,0.32787621]
[1728866120128,0.06418456,62827.0,62826.0,0.52623621]
[1728866120375,0.04930465,62827.0,62826.0,0.52623621]
[1728866120571,0.06417795,62827.0,62826.0,0.52623621]
[1728866120804,0.06417795,62827.0,62826.0,0.52723621]
[1728866121357,0.04930465,62827.0,62826.0,0.53123621]
[1728866121589,0.06417092,62827.0,62826.0,0.52723621]
[1728866121801,0.06417092,62827.0,62826.0,0.53823621]
[1728866122205,0.04930465,62827.0,62826.0,0.53723621]
[1728866122632,0.04930465,62827.0,62826.0,0.54823621]
[1728866124182,0.001636,62827.0,62826.0,0.54823621]
[1728866124399,0.001636,62827.0,62826.0,0.38183621]
[1728866125054,0.01648878,62827.0,62826.0,0.38183621]
[1728866125267,0.001636,62827.0,62826.0,0.38183621]
[1728866127701,0.01648597,62827.0,62826.0,0.0614432]
[1728866127907,0.18065297,62827.0,62826.0,0.0614432]
[1728866128134,0.18065297,62827.0,62826.0,0.022]
[1728866128754,0.18065297,62827.0,62822.0,0.159179]
[1728866128968,0.159181,62822.0,62820.0,0.032778]
[1728866129186,0.17903197,62821.0,62820.0,0.19400201]
[1728866129604,0.17903197,62821.0,62820.0,0.000818]
[1728866130698,0.17903197,62821.0,62820.0,0.005818]
[1728866130911,0.34571234,62821.0,62820.0,0.005818]
[1728866131127,0.37064788,62821.0,62820.0,0.000818]
[1728866131350,0.37064788,62821.0,62820.0,0.004818]
[1728866131616,0.53764788,62821.0,62820.0,0.004818]
[1728866131821,0.51271234,62821.0,62820.0,0.006818]
[1728866132046,0.51771234,62821.0,62820.0,0.001818]
[1728866132697,0.54071234,62821.0,62820.0,0.001818]
[1728866133204,0.51971234,62821.0,62820.0,0.001818]
[1728866133422,0.34803197,62821.0,62820.0,0.001818]
[1728866133640,0.09784997,62821.0,62820.0,0.000818]